[Event "Early-Titled-Tuesday-Blitz-April-16-2024"]
[Site "Chess.com"]
[Date "2024.04.16"]
[Round "6"]
[White "BilodeauA"]
[Black "MyDream003"]
[Result "1-0"]
[WhiteElo "2974"]
[BlackElo "2797"]
[TimeControl "180+1"]
[EndTime "9:09:25 PDT"]
[Termination "BilodeauA won on time"]

1. e4 {[%clk 0:02:57.4]} 1... e5 {[%clk 0:02:59]} 2. Nf3 {[%clk 0:02:57.8]} 2...
Nc6 {[%clk 0:02:59.1]} 3. Bc4 {[%clk 0:02:55.2]} 3... Bc5 {[%clk 0:02:58.8]} 4.
d3 {[%clk 0:02:54.8]} 4... Nf6 {[%clk 0:02:58.8]} 5. Nc3 {[%clk 0:02:55.2]} 5...
h6 {[%clk 0:02:57.4]} 6. h3 {[%clk 0:02:54.4]} 6... d6 {[%clk 0:02:57.4]} 7. a4
{[%clk 0:02:50.4]} 7... a6 {[%clk 0:02:56.5]} 8. Be3 {[%clk 0:02:49.1]} 8...
Bxe3 {[%clk 0:02:51.4]} 9. fxe3 {[%clk 0:02:48.9]} 9... Be6 {[%clk 0:02:52.1]}
10. Nd2 {[%clk 0:02:48.6]} 10... O-O {[%clk 0:02:48.6]} 11. O-O {[%clk
0:02:47.9]} 11... d5 {[%clk 0:02:46.6]} 12. exd5 {[%clk 0:02:43.9]} 12... Nxd5
{[%clk 0:02:47.1]} 13. Qf3 {[%clk 0:02:39.4]} 13... Nxc3 {[%clk 0:02:42.2]} 14.
bxc3 {[%clk 0:02:38.9]} 14... Bxc4 {[%clk 0:02:27]} 15. Nxc4 {[%clk 0:02:39.8]}
15... Qd7 {[%clk 0:02:27.4]} 16. a5 {[%clk 0:02:33.4]} 16... f6 {[%clk
0:02:25.3]} 17. Rab1 {[%clk 0:02:33.3]} 17... Rab8 {[%clk 0:02:25.4]} 18. e4
{[%clk 0:02:33.9]} 18... Na7 {[%clk 0:02:16.4]} 19. Ne3 {[%clk 0:02:27.7]} 19...
Nb5 {[%clk 0:02:15.2]} 20. Rb3 {[%clk 0:02:08.6]} 20... Kh8 {[%clk 0:01:58.9]}
21. Kh1 {[%clk 0:02:05.5]} 21... Nd6 {[%clk 0:01:58.1]} 22. Qg3 {[%clk
0:01:58.8]} 22... Qa4 {[%clk 0:01:44.6]} 23. Qg6 {[%clk 0:01:41.8]} 23... Qxa5
{[%clk 0:01:18]} 24. Ng4 {[%clk 0:01:41.3]} 24... Qa4 {[%clk 0:01:18.1]} 25.
Nxh6 {[%clk 0:01:27.7]} 25... Qe8 {[%clk 0:01:17.5]} 26. Qxe8 {[%clk 0:01:28]}
26... Rfxe8 {[%clk 0:01:14.6]} 27. Ng4 {[%clk 0:01:28.3]} 27... a5 {[%clk
0:01:11.9]} 28. c4 {[%clk 0:01:28.5]} 28... b6 {[%clk 0:01:11.3]} 29. Ne3 {[%clk
0:01:28.7]} 29... Nb7 {[%clk 0:01:07.1]} 30. Ra1 {[%clk 0:01:26.9]} 30... Nc5
{[%clk 0:01:06.7]} 31. Rb5 {[%clk 0:01:27.1]} 31... Kg8 {[%clk 0:00:59.1]} 32.
Kg1 {[%clk 0:01:22]} 32... Kf7 {[%clk 0:00:58.7]} 33. Rxc5 {[%clk 0:01:15.3]}
33... bxc5 {[%clk 0:00:54.3]} 34. Rxa5 {[%clk 0:01:16]} 34... c6 {[%clk
0:00:51.3]} 35. Rxc5 {[%clk 0:01:15]} 35... Rec8 {[%clk 0:00:46.3]} 36. Nf5
{[%clk 0:01:15.3]} 36... Rc7 {[%clk 0:00:36.7]} 37. Ra5 {[%clk 0:01:15.3]} 37...
g6 {[%clk 0:00:33.1]} 38. Ne3 {[%clk 0:01:15]} 38... Rbb7 {[%clk 0:00:26.6]} 39.
Ra1 {[%clk 0:01:13]} 39... Ra7 {[%clk 0:00:25.3]} 40. Rf1 {[%clk 0:01:13]} 40...
Kg7 {[%clk 0:00:25.6]} 41. Kf2 {[%clk 0:01:13.1]} 41... Rcb7 {[%clk 0:00:23.2]}
42. Ke2 {[%clk 0:01:13.1]} 42... Ra8 {[%clk 0:00:22.4]} 43. Kd2 {[%clk
0:01:08.4]} 43... Ra3 {[%clk 0:00:21.1]} 44. Ng4 {[%clk 0:01:03.2]} 44... Rf7
{[%clk 0:00:17.4]} 45. Rb1 {[%clk 0:01:03.3]} 45... Ra2 {[%clk 0:00:16]} 46. Rb6
{[%clk 0:01:02.8]} 46... Rc7 {[%clk 0:00:15.9]} 47. Rb1 {[%clk 0:00:55.8]} 47...
Ra6 {[%clk 0:00:11.4]} 48. Ne3 {[%clk 0:00:55.7]} 48... Rca7 {[%clk 0:00:09.4]}
49. Rf1 {[%clk 0:00:51]} 49... Ra1 {[%clk 0:00:08.3]} 50. Rf3 {[%clk 0:00:51]}
50... Rg1 {[%clk 0:00:07.8]} 51. Kc3 {[%clk 0:00:49.5]} 51... Rb1 {[%clk
0:00:07]} 52. Rg3 {[%clk 0:00:47.3]} 52... Ra3+ {[%clk 0:00:06]} 53. Kd2 {[%clk
0:00:47.4]} 53... Kf7 {[%clk 0:00:03.6]} 54. Ng4 {[%clk 0:00:43.9]} 54... Rf1
{[%clk 0:00:02.7]} 55. Ke2 {[%clk 0:00:34.5]} 55... Raa1 {[%clk 0:00:02.3]} 56.
Ne3 {[%clk 0:00:34.6]} 56... Rfe1+ {[%clk 0:00:02.2]} 57. Kd2 {[%clk 0:00:35]}
57... Reb1 {[%clk 0:00:01.8]} 58. Rf3 {[%clk 0:00:34.1]} 58... Kg7 {[%clk
0:00:02.1]} 59. h4 {[%clk 0:00:33.4]} 59... Rg1 {[%clk 0:00:02]} 60. g3 {[%clk
0:00:30.7]} 60... Rh1 {[%clk 0:00:01.9]} 61. Kc3 {[%clk 0:00:27]} 61... Rhb1
{[%clk 0:00:02.1]} 62. g4 {[%clk 0:00:24.7]} 62... Ra3+ {[%clk 0:00:02]} 63. Kd2
{[%clk 0:00:25.1]} 63... Raa1 {[%clk 0:00:01.9]} 64. h5 {[%clk 0:00:25.2]} 1-0

[Event "Early-Titled-Tuesday-Blitz-April-16-2024"]
[Site "Chess.com"]
[Date "2024.04.16"]
[Round "6"]
[White "GothamChess"]
[Black "Zohid6"]
[Result "1/2-1/2"]
[WhiteElo "2665"]
[BlackElo "2937"]
[TimeControl "180+1"]
[EndTime "9:09:26 PDT"]
[Termination "Game drawn - insufficient material"]

1. e4 {[%clk 0:02:56.1]} 1... e5 {[%clk 0:02:59.5]} 2. Nc3 {[%clk 0:02:55.4]}
2... Nf6 {[%clk 0:02:58.6]} 3. d4 {[%clk 0:02:54.8]} 3... exd4 {[%clk
0:02:57.3]} 4. Qxd4 {[%clk 0:02:55.7]} 4... Nc6 {[%clk 0:02:56.6]} 5. Qd3 {[%clk
0:02:55.5]} 5... Bb4 {[%clk 0:02:56.8]} 6. Bd2 {[%clk 0:02:52]} 6... O-O {[%clk
0:02:56.3]} 7. O-O-O {[%clk 0:02:51]} 7... Re8 {[%clk 0:02:54]} 8. Nge2 {[%clk
0:02:48.1]} 8... d6 {[%clk 0:02:44.3]} 9. f3 {[%clk 0:02:30.9]} 9... Ne5 {[%clk
0:02:35.7]} 10. Qb5 {[%clk 0:02:23.8]} 10... a5 {[%clk 0:02:30.1]} 11. Nf4
{[%clk 0:02:14.8]} 11... Bd7 {[%clk 0:02:15.8]} 12. Qe2 {[%clk 0:02:13.4]} 12...
c6 {[%clk 0:02:08.6]} 13. a3 {[%clk 0:02:01.9]} 13... Bc5 {[%clk 0:02:08.6]} 14.
Nd3 {[%clk 0:01:52.2]} 14... Nxd3+ {[%clk 0:02:06]} 15. Qxd3 {[%clk 0:01:52.4]}
15... b5 {[%clk 0:02:05.8]} 16. Be3 {[%clk 0:01:46.7]} 16... Qb6 {[%clk
0:01:52.8]} 17. Bxc5 {[%clk 0:01:30.2]} 17... dxc5 {[%clk 0:01:53.7]} 18. Qe3
{[%clk 0:01:30.6]} 18... a4 {[%clk 0:01:51]} 19. Nb1 {[%clk 0:01:17.4]} 19...
Be6 {[%clk 0:01:46.3]} 20. Be2 {[%clk 0:01:08.1]} 20... Reb8 {[%clk 0:01:40.1]}
21. c3 {[%clk 0:01:06.7]} 21... h6 {[%clk 0:01:08.4]} 22. Rd6 {[%clk 0:01:06.3]}
22... b4 {[%clk 0:01:00]} 23. cxb4 {[%clk 0:01:04.9]} 23... cxb4 {[%clk
0:01:00.9]} 24. Qxb6 {[%clk 0:01:03.1]} 24... Rxb6 {[%clk 0:01:01.8]} 25. Rhd1
{[%clk 0:01:01.1]} 25... Ra7 {[%clk 0:00:51.8]} 26. Rd8+ {[%clk 0:00:53.8]}
26... Kh7 {[%clk 0:00:51.3]} 27. R1d6 {[%clk 0:00:47.2]} 27... Rab7 {[%clk
0:00:48.3]} 28. Rd2 {[%clk 0:00:45]} 28... Ba2 {[%clk 0:00:46.3]} 29. Bd3 {[%clk
0:00:38.8]} 29... g6 {[%clk 0:00:46.3]} 30. axb4 {[%clk 0:00:35.8]} 30... Rxb4
{[%clk 0:00:47.2]} 31. Nc3 {[%clk 0:00:26.1]} 31... Be6 {[%clk 0:00:47.3]} 32.
e5 {[%clk 0:00:26.3]} 32... Nd7 {[%clk 0:00:46.2]} 33. Ne4 {[%clk 0:00:18.4]}
33... Nxe5 {[%clk 0:00:46.4]} 34. Nf6+ {[%clk 0:00:14.8]} 34... Kg7 {[%clk
0:00:45.9]} 35. Ne8+ {[%clk 0:00:15.5]} 35... Kf8 {[%clk 0:00:32]} 36. Nd6+
{[%clk 0:00:15.4]} 36... Ke7 {[%clk 0:00:32.9]} 37. Nxb7 {[%clk 0:00:16]} 37...
Rxb7 {[%clk 0:00:33.8]} 38. Ra8 {[%clk 0:00:14]} 38... Rb4 {[%clk 0:00:34.1]}
39. Bc2 {[%clk 0:00:13.5]} 39... Bb3 {[%clk 0:00:34.5]} 40. Ra7+ {[%clk
0:00:13.7]} 40... Ke6 {[%clk 0:00:33.2]} 41. Re2 {[%clk 0:00:13.7]} 41... Rc4
{[%clk 0:00:29.8]} 42. Kb1 {[%clk 0:00:13.9]} 42... Kf6 {[%clk 0:00:28.7]} 43.
Rb7 {[%clk 0:00:11.6]} 43... Bxc2+ {[%clk 0:00:21]} 44. Rxc2 {[%clk 0:00:12.5]}
44... Rd4 {[%clk 0:00:21.8]} 45. Ra7 {[%clk 0:00:09.4]} 45... Kf5 {[%clk
0:00:17.1]} 46. Ra5 {[%clk 0:00:08.7]} 46... h5 {[%clk 0:00:14]} 47. Re2 {[%clk
0:00:08.9]} 47... f6 {[%clk 0:00:14.2]} 48. Ka2 {[%clk 0:00:07.6]} 48... h4
{[%clk 0:00:12.9]} 49. g3 {[%clk 0:00:07.6]} 49... hxg3 {[%clk 0:00:13.8]} 50.
hxg3 {[%clk 0:00:08]} 50... g5 {[%clk 0:00:14.6]} 51. Ka3 {[%clk 0:00:04.9]}
51... Kg6 {[%clk 0:00:13.1]} 52. Raxe5 {[%clk 0:00:01.9]} 52... fxe5 {[%clk
0:00:14]} 53. Rxe5 {[%clk 0:00:02.5]} 53... Rd3+ {[%clk 0:00:14.9]} 54. Kxa4
{[%clk 0:00:03.1]} 54... Rxf3 {[%clk 0:00:15.8]} 55. Re6+ {[%clk 0:00:03.7]}
55... Kf5 {[%clk 0:00:15.9]} 56. Rxc6 {[%clk 0:00:04]} 56... Rxg3 {[%clk
0:00:16.8]} 57. b4 {[%clk 0:00:04.3]} 57... Rg1 {[%clk 0:00:17.2]} 58. b5 {[%clk
0:00:04.1]} 58... g4 {[%clk 0:00:17.8]} 59. Rc8 {[%clk 0:00:04.5]} 59... g3
{[%clk 0:00:17.3]} 60. Rg8 {[%clk 0:00:05.2]} 60... g2 {[%clk 0:00:17.1]} 61.
Ka5 {[%clk 0:00:05]} 61... Ra1+ {[%clk 0:00:17.3]} 62. Kb6 {[%clk 0:00:05.5]}
62... g1=Q+ {[%clk 0:00:16.6]} 63. Rxg1 {[%clk 0:00:06.4]} 63... Rxg1 {[%clk
0:00:16.5]} 64. Kc7 {[%clk 0:00:06.8]} 64... Rc1+ {[%clk 0:00:16.3]} 65. Kd7
{[%clk 0:00:07.3]} 65... Rb1 {[%clk 0:00:16.7]} 66. Kc7 {[%clk 0:00:07.6]} 66...
Ke6 {[%clk 0:00:17.2]} 67. b6 {[%clk 0:00:08.3]} 67... Rc1+ {[%clk 0:00:17.4]}
68. Kd8 {[%clk 0:00:08.7]} 68... Rd1+ {[%clk 0:00:11]} 69. Kc7 {[%clk
0:00:08.7]} 69... Rc1+ {[%clk 0:00:10.6]} 70. Kd8 {[%clk 0:00:09.1]} 70... Rb1
{[%clk 0:00:06.1]} 71. Kc7 {[%clk 0:00:09.2]} 71... Rxb6 {[%clk 0:00:04]} 72.
Kxb6 {[%clk 0:00:09.5]} 1/2-1/2

[Event "Early-Titled-Tuesday-Blitz-April-16-2024"]
[Site "Chess.com"]
[Date "2024.04.16"]
[Round "6"]
[White "karinachess1"]
[Black "Der_Balak_3Halak"]
[Result "1-0"]
[WhiteElo "2618"]
[BlackElo "2442"]
[TimeControl "180+1"]
[EndTime "9:09:31 PDT"]
[Termination "karinachess1 won by checkmate"]

1. d4 {[%clk 0:03:00.9]} 1... d5 {[%clk 0:02:59.9]} 2. c4 {[%clk 0:03:00.5]}
2... c6 {[%clk 0:03:00.4]} 3. Nf3 {[%clk 0:03:00.3]} 3... Nf6 {[%clk 0:03:00.5]}
4. g3 {[%clk 0:03:00.6]} 4... Bf5 {[%clk 0:02:56]} 5. Nc3 {[%clk 0:03:00.4]}
5... e6 {[%clk 0:02:55.1]} 6. Qb3 {[%clk 0:03:00.5]} 6... Qc8 {[%clk 0:02:54.5]}
7. Bf4 {[%clk 0:02:46.7]} 7... Nbd7 {[%clk 0:02:53.6]} 8. Rc1 {[%clk 0:02:46.6]}
8... Be7 {[%clk 0:02:47.8]} 9. cxd5 {[%clk 0:02:28.4]} 9... exd5 {[%clk
0:02:45.7]} 10. Nb5 {[%clk 0:02:21.8]} 10... O-O {[%clk 0:02:38.5]} 11. Nd6
{[%clk 0:01:56.2]} 11... Bxd6 {[%clk 0:02:36.4]} 12. Bxd6 {[%clk 0:01:57.1]}
12... Re8 {[%clk 0:02:36.6]} 13. Bg2 {[%clk 0:01:53.5]} 13... Ne4 {[%clk
0:02:36.2]} 14. Bf4 {[%clk 0:01:52.1]} 14... a5 {[%clk 0:02:14.7]} 15. a4 {[%clk
0:01:41.9]} 15... h6 {[%clk 0:02:12.6]} 16. O-O {[%clk 0:01:39.4]} 16... Ndf6
{[%clk 0:02:09.3]} 17. Ne5 {[%clk 0:01:26.1]} 17... Bh3 {[%clk 0:01:34.8]} 18.
Rc2 {[%clk 0:00:51.8]} 18... Bxg2 {[%clk 0:01:33.5]} 19. Kxg2 {[%clk 0:00:51.5]}
19... Nd7 {[%clk 0:01:13.3]} 20. f3 {[%clk 0:00:46.3]} 20... Ng5 {[%clk
0:01:04.2]} 21. Nd3 {[%clk 0:00:37.9]} 21... Nf6 {[%clk 0:00:53.9]} 22. Bxg5
{[%clk 0:00:31.2]} 22... hxg5 {[%clk 0:00:53.8]} 23. Nc5 {[%clk 0:00:29.5]}
23... Rb8 {[%clk 0:00:50.7]} 24. Qb6 {[%clk 0:00:26.5]} 24... g4 {[%clk
0:00:49.2]} 25. Nb3 {[%clk 0:00:20.2]} 25... Qf5 {[%clk 0:00:47.5]} 26. Qc5
{[%clk 0:00:17.2]} 26... Re3 {[%clk 0:00:28]} 27. Nc1 {[%clk 0:00:17.2]} 27...
Rbe8 {[%clk 0:00:19.1]} 28. Rf2 {[%clk 0:00:13.4]} 28... gxf3+ {[%clk
0:00:19.3]} 29. exf3 {[%clk 0:00:13.8]} 29... Re1 {[%clk 0:00:20.2]} 30. Ne2
{[%clk 0:00:11.4]} 30... Qh5 {[%clk 0:00:17.1]} 31. Nf4 {[%clk 0:00:10.2]} 31...
Qh7 {[%clk 0:00:15.4]} 32. Rce2 {[%clk 0:00:07.8]} 32... R1xe2 {[%clk
0:00:15.4]} 33. Rxe2 {[%clk 0:00:08.7]} 33... Rxe2+ {[%clk 0:00:15.7]} 34. Nxe2
{[%clk 0:00:09.6]} 34... Qd3 {[%clk 0:00:15.7]} 35. Nf4 {[%clk 0:00:06.4]} 35...
Qd2+ {[%clk 0:00:15.9]} 36. Kg1 {[%clk 0:00:06.8]} 36... Qxb2 {[%clk 0:00:15.5]}
37. h4 {[%clk 0:00:02.6]} 37... Qb4 {[%clk 0:00:15.3]} 38. Qa7 {[%clk
0:00:01.4]} 38... Qe1+ {[%clk 0:00:15.4]} 39. Kg2 {[%clk 0:00:01.7]} 39... Qd2+
{[%clk 0:00:13.4]} 40. Kg1 {[%clk 0:00:01.5]} 40... Qb4 {[%clk 0:00:12.6]} 41.
Qb8+ {[%clk 0:00:01.4]} 41... Kh7 {[%clk 0:00:12.9]} 42. Qe5 {[%clk 0:00:01.9]}
42... Nd7 {[%clk 0:00:11.6]} 43. Qf5+ {[%clk 0:00:01.9]} 43... Kg8 {[%clk
0:00:12.3]} 44. Qxd7 {[%clk 0:00:02.4]} 44... Qxd4+ {[%clk 0:00:12.5]} 45. Kg2
{[%clk 0:00:03.2]} 45... Qd2+ {[%clk 0:00:12.5]} 46. Kh3 {[%clk 0:00:03.6]}
46... d4 {[%clk 0:00:11.6]} 47. Qc8+ {[%clk 0:00:03.9]} 47... Kh7 {[%clk
0:00:10.9]} 48. Qf5+ {[%clk 0:00:04.6]} 48... Kg8 {[%clk 0:00:11.4]} 49. Qc8+
{[%clk 0:00:03.7]} 49... Kh7 {[%clk 0:00:11.4]} 50. Qxb7 {[%clk 0:00:04.6]}
50... c5 {[%clk 0:00:11]} 51. Qe4+ {[%clk 0:00:04.3]} 51... Kg8 {[%clk
0:00:11.7]} 52. Qd5 {[%clk 0:00:04.4]} 52... Qc3 {[%clk 0:00:07.1]} 53. Qd8+
{[%clk 0:00:04.1]} 53... Kh7 {[%clk 0:00:07]} 54. Qd5 {[%clk 0:00:02.9]} 54...
c4 {[%clk 0:00:07]} 55. Qe4+ {[%clk 0:00:03.6]} 55... Kg8 {[%clk 0:00:07.3]} 56.
Nd5 {[%clk 0:00:03.9]} 56... Qd2 {[%clk 0:00:04.3]} 57. Ne7+ {[%clk 0:00:02.9]}
57... Kf8 {[%clk 0:00:04.9]} 58. Nf5 {[%clk 0:00:03.1]} 58... Kg8 {[%clk
0:00:04.5]} 59. Qe8+ {[%clk 0:00:02.4]} 59... Kh7 {[%clk 0:00:05.1]} 60. Qxf7
{[%clk 0:00:03]} 60... Qh6 {[%clk 0:00:02.1]} 61. Nxh6 {[%clk 0:00:03]} 61...
Kxh6 {[%clk 0:00:03]} 62. Qxc4 {[%clk 0:00:03.8]} 62... d3 {[%clk 0:00:03.9]}
63. Qxd3 {[%clk 0:00:04.3]} 63... g5 {[%clk 0:00:04.1]} 64. Qb5 {[%clk
0:00:05.2]} 64... g4+ {[%clk 0:00:04.2]} 65. Kxg4 {[%clk 0:00:05.4]} 65... Kg7
{[%clk 0:00:04.4]} 66. Qxa5 {[%clk 0:00:06.3]} 66... Kh8 {[%clk 0:00:05.1]} 67.
Qb5 {[%clk 0:00:07.2]} 67... Kg7 {[%clk 0:00:06]} 68. a5 {[%clk 0:00:08.1]}
68... Kh8 {[%clk 0:00:06.8]} 69. a6 {[%clk 0:00:09]} 69... Kg7 {[%clk
0:00:07.7]} 70. Qb6 {[%clk 0:00:09.2]} 70... Kf7 {[%clk 0:00:07.9]} 71. a7
{[%clk 0:00:09.8]} 71... Kg7 {[%clk 0:00:08.8]} 72. a8=Q {[%clk 0:00:10.2]}
72... Kf7 {[%clk 0:00:09.7]} 73. Qaa7+ {[%clk 0:00:11.1]} 73... Kg8 {[%clk
0:00:10]} 74. Qbb8# {[%clk 0:00:12]} 1-0

[Event "Early-Titled-Tuesday-Blitz-April-16-2024"]
[Site "Chess.com"]
[Date "2024.04.16"]
[Round "6"]
[White "Koalaskakistis"]
[Black "jumpingknight20"]
[Result "0-1"]
[WhiteElo "2570"]
[BlackElo "2743"]
[TimeControl "180+1"]
[EndTime "9:09:35 PDT"]
[Termination "jumpingknight20 won by resignation"]

1. d4 {[%clk 0:03:00.9]} 1... g6 {[%clk 0:02:59.3]} 2. e4 {[%clk 0:02:58.3]}
2... Bg7 {[%clk 0:02:59.7]} 3. Nc3 {[%clk 0:02:54.3]} 3... d6 {[%clk 0:02:56.8]}
4. Be3 {[%clk 0:02:53.7]} 4... Nd7 {[%clk 0:02:56.6]} 5. h4 {[%clk 0:02:53.3]}
5... h5 {[%clk 0:02:56.3]} 6. Nh3 {[%clk 0:02:53]} 6... Ngf6 {[%clk 0:02:53.8]}
7. f3 {[%clk 0:02:51.8]} 7... a6 {[%clk 0:02:52]} 8. Ng5 {[%clk 0:02:50.2]} 8...
O-O {[%clk 0:02:32.2]} 9. Qd2 {[%clk 0:02:24.7]} 9... b5 {[%clk 0:02:31.3]} 10.
O-O-O {[%clk 0:02:24.3]} 10... b4 {[%clk 0:02:29.5]} 11. Ne2 {[%clk 0:02:23.3]}
11... a5 {[%clk 0:02:28.2]} 12. Nf4 {[%clk 0:02:20.8]} 12... e5 {[%clk
0:02:22.8]} 13. dxe5 {[%clk 0:02:19.5]} 13... Nxe5 {[%clk 0:02:23.7]} 14. Bd4
{[%clk 0:02:10.9]} 14... Nc6 {[%clk 0:02:11.4]} 15. Be3 {[%clk 0:01:56.4]} 15...
a4 {[%clk 0:01:53.6]} 16. Bc4 {[%clk 0:01:49.2]} 16... Ne5 {[%clk 0:01:52.4]}
17. Qxb4 {[%clk 0:01:47.1]} 17... a3 {[%clk 0:01:41.3]} 18. b3 {[%clk
0:01:42.6]} 18... c5 {[%clk 0:01:26.5]} 19. Qc3 {[%clk 0:01:40.3]} 19... Nxc4
{[%clk 0:01:22.2]} 20. Qxc4 {[%clk 0:01:39.6]} 20... Ba6 {[%clk 0:01:22.5]} 21.
Qa4 {[%clk 0:01:10.2]} 21... Be2 {[%clk 0:01:19.1]} 22. Qc6 {[%clk 0:01:10.1]}
22... Ra6 {[%clk 0:00:52.8]} 23. Qb7 {[%clk 0:01:03.8]} 23... Rb6 {[%clk
0:00:52]} 24. Qa7 {[%clk 0:01:03.9]} 24... Bxd1 {[%clk 0:00:51.9]} 25. Rxd1
{[%clk 0:01:03.7]} 25... Qb8 {[%clk 0:00:47.4]} 26. Qxb8 {[%clk 0:00:42]} 26...
Rfxb8 {[%clk 0:00:48.3]} 27. c4 {[%clk 0:00:41.3]} 27... Rc6 {[%clk 0:00:36.8]}
28. Kc2 {[%clk 0:00:39.2]} 28... Nd7 {[%clk 0:00:31.6]} 29. Nd5 {[%clk
0:00:39.1]} 29... Kf8 {[%clk 0:00:30.3]} 30. Bc1 {[%clk 0:00:38.2]} 30... Ne5
{[%clk 0:00:27.2]} 31. Nh7+ {[%clk 0:00:20.6]} 31... Ke8 {[%clk 0:00:23.8]} 32.
Nhf6+ {[%clk 0:00:20.4]} 32... Bxf6 {[%clk 0:00:16.5]} 33. Nxf6+ {[%clk
0:00:21.3]} 33... Ke7 {[%clk 0:00:16.6]} 34. Nd5+ {[%clk 0:00:21.6]} 34... Ke6
{[%clk 0:00:13.5]} 35. Bg5 {[%clk 0:00:17.9]} 35... f5 {[%clk 0:00:12.2]} 36.
Nf4+ {[%clk 0:00:15.7]} 36... Kf7 {[%clk 0:00:12.5]} 37. exf5 {[%clk 0:00:16.1]}
37... gxf5 {[%clk 0:00:13.4]} 38. Nxh5 {[%clk 0:00:16.6]} 38... Nxc4 {[%clk
0:00:12.4]} 39. bxc4 {[%clk 0:00:15.8]} 39... Rb2+ {[%clk 0:00:13.3]} 40. Kc3
{[%clk 0:00:15.3]} 40... Rxa2 {[%clk 0:00:13.1]} 41. Nf4 {[%clk 0:00:12.3]}
41... Rf2 {[%clk 0:00:10.8]} 42. Ra1 {[%clk 0:00:10.8]} 42... a2 {[%clk
0:00:10.9]} 43. Nd5 {[%clk 0:00:05.9]} 43... Rc8 {[%clk 0:00:07.8]} 44. Be3
{[%clk 0:00:04.1]} 44... Rxg2 {[%clk 0:00:06.7]} 45. Kd3 {[%clk 0:00:02.4]}
45... Rb8 {[%clk 0:00:06.4]} 46. Nc3 {[%clk 0:00:03.2]} 46... Rb3 {[%clk
0:00:06.5]} 47. Bd2 {[%clk 0:00:02.4]} 47... Rg3 {[%clk 0:00:06.7]} 48. Rxa2
{[%clk 0:00:01.6]} 48... Rxf3+ {[%clk 0:00:07.1]} 49. Ke2 {[%clk 0:00:01.6]}
49... Rfxc3 {[%clk 0:00:06.3]} 50. Bxc3 {[%clk 0:00:02.5]} 50... Rxc3 {[%clk
0:00:07.2]} 51. Ra6 {[%clk 0:00:02.8]} 51... Ke6 {[%clk 0:00:06.9]} 52. Ra4
{[%clk 0:00:03.4]} 52... Rh3 {[%clk 0:00:07]} 53. Kf2 {[%clk 0:00:03.4]} 53...
Rxh4 {[%clk 0:00:07.4]} 54. Ke3 {[%clk 0:00:04]} 54... Ke5 {[%clk 0:00:07.2]}
55. Kf3 {[%clk 0:00:02.6]} 55... d5 {[%clk 0:00:06.7]} 56. Ra8 {[%clk
0:00:01.3]} 56... Rxc4 {[%clk 0:00:06.8]} 57. Re8+ {[%clk 0:00:01.6]} 57... Kd4
{[%clk 0:00:07.5]} 58. Kf4 {[%clk 0:00:02.5]} 58... Kc3+ {[%clk 0:00:07.2]} 59.
Kxf5 {[%clk 0:00:03]} 59... d4 {[%clk 0:00:04.9]} 60. Ke4 {[%clk 0:00:03.9]}
60... d3+ {[%clk 0:00:04.1]} 61. Ke3 {[%clk 0:00:04.1]} 61... Rd4 {[%clk
0:00:04.7]} 62. Rc8 {[%clk 0:00:01.8]} 62... d2 {[%clk 0:00:05.2]} 63. Rxc5+
{[%clk 0:00:02.1]} 63... Kb4 {[%clk 0:00:05.7]} 64. Kxd4 {[%clk 0:00:02.2]}
64... d1=Q+ {[%clk 0:00:06.1]} 0-1